bitfinex/quotes_ETHUSD_20241103
["timestamp","ask_amount","ask_price","bid_price","bid_amount"]
[1730611025384,4.07615,2453.3,2452.8,4.07685]
[1730611025901,4.07615,2453.3,2452.9,4.07679]
[1730611027666,4.07615,2453.3,2453.0,0.8016]
[1730611028507,5.24984952,2453.4,2453.0,0.8016]
[1730611029609,4.07614,2453.3,2453.0,0.8016]
[1730611036797,5.24975952,2453.4,2453.0,4.87822]
[1730611037497,9.32580952,2453.4,2453.0,0.8016]
[1730611037814,5.24975952,2453.4,2453.0,0.8016]
[1730611037975,4.87917,2453.6,2453.0,1.289439]
[1730611037976,4.07583,2453.5,2453.0,1.289439]
[1730611038175,4.07599,2453.4,2453.0,5.366059]
[1730611038485,5.24976952,2453.4,2453.0,1.289439]
[1730611038680,5.25008952,2453.2,2453.0,0.8016]
[1730611038902,4.07698,2452.8,2452.6,1.00144574]
[1730611039070,4.07698,2452.8,2452.1,4.07798]
[1730611039071,4.07698,2452.8,2452.4,0.8016]
[1730611039275,4.07713,2452.7,2452.4,1.00144574]
[1730611039769,4.07698,2452.8,2452.4,1.00144574]
[1730611039971,4.07698,2452.8,2452.4,5.07905574]
[1730611040173,4.07698,2452.8,2452.4,4.87921]
[1730611040520,4.07698,2452.8,2452.4,0.8016]
[1730611040809,8.15404,2452.8,2452.4,0.8016]
[1730611041626,4.07698,2452.8,2452.4,0.8016]
[1730611041777,8.15403,2452.8,2452.4,0.8016]
[1730611041978,4.07698,2452.8,2452.4,0.8016]
[1730611042374,9.16770095,2452.8,2452.4,0.8016]
[1730611042609,5.09059095,2452.8,2452.4,0.8016]
[1730611042814,1.17377952,2452.5,2452.2,0.8245]
[1730611043218,5.25132952,2452.5,2452.2,0.8245]
[1730611043401,4.89788,2452.6,2452.2,0.8245]
[1730611044115,4.89788,2452.6,2452.2,4.90245]
[1730611046834,4.89758,2452.8,2452.2,4.90236]
[1730611047043,4.83960921,2452.7,2452.2,8.98024]
[1730611047202,0.76239921,2452.7,2452.3,4.07778]
[1730611047532,4.83953921,2452.7,2452.3,4.07778]
[1730611047738,0.76239921,2452.7,2452.3,4.07778]
[1730611048603,4.07672,2453.0,2452.4,0.8245]
[1730611048805,4.07672,2453.0,2451.9,0.85551398]
[1730611048806,4.07672,2453.0,2452.6,0.8245]
[1730611050578,4.07672,2453.0,2452.6,4.90175]
[1730611053541,7.62335208,2453.2,2452.7,8.15414]
[1730611053702,7.62335208,2453.2,2452.0,4.07828]
[1730611053703,3.0,2453.3,2452.9,0.8245]
[1730611053901,3.0,2453.3,2452.9,4.90123]
[1730611054357,4.07588,2453.5,2453.0,4.07655]
[1730611054528,4.07597,2453.4,2453.0,4.07655]
[1730611056863,4.07581,2453.5,2453.1,4.90096]
[1730611057442,4.07581,2453.5,2453.1,0.8245]
[1730611058820,4.07583,2453.5,2453.1,4.90096]
[1730611059118,4.07578,2453.6,2453.1,4.90096]
[1730611059315,4.07583,2453.5,2453.1,4.90096]
[1730611060363,4.07583,2453.5,2453.1,0.8245]
[1730611060657,5.06084296,2453.5,2453.1,0.8245]
[1730611065639,6.23455578,2453.5,2453.1,0.8245]
[1730611066736,1.17371282,2453.3,2453.1,0.8245]
[1730611066939,4.07648,2453.1,2452.8,0.8245]
[1730611067155,5.25043282,2453.0,2452.6,0.8245]
[1730611067339,5.25043282,2453.0,2452.6,4.90178]
[1730611071538,1.17371282,2453.0,2452.6,4.90178]
[1730611071741,1.34551928,2453.1,2452.6,4.90178]
[1730611071974,1.34551928,2453.1,2452.7,4.07706]
[1730611072939,5.42199928,2453.1,2452.7,4.07706]
[1730611074375,5.25004282,2453.2,2452.7,4.07706]
[1730611074739,4.0765,2453.1,2452.7,4.07706]
[1730611078097,4.0765,2453.1,2452.6,4.90178]
[1730611078785,4.85575,2453.0,2452.6,4.90178]
[1730611078986,0.779,2453.0,2452.6,8.15447]
[1730611079560,0.779,2453.0,2452.6,4.07719]
[1730611079788,0.779,2453.0,2452.6,8.15441]
[1730611080194,0.779,2453.0,2452.6,4.07719]
[1730611080659,0.779,2453.0,2452.6,8.1544]
[1730611080858,0.779,2453.0,2452.6,4.07719]
[1730611081053,0.779,2453.0,2452.6,8.1544]
[1730611081674,6.02902282,2453.2,2452.7,4.87649]
[1730611081987,4.85531,2453.2,2452.7,4.87649]
[1730611082296,4.07651,2453.1,2452.7,4.87649]
[1730611083689,4.85533,2453.2,2452.7,8.95353]
[1730611084002,4.85533,2453.2,2452.7,4.87649]
[1730611084149,4.07647,2453.1,2452.7,4.87649]
[1730611085017,9.21606596,2453.1,2452.7,0.7995]
[1730611085219,5.13948596,2453.1,2452.7,0.7995]
[1730611085387,4.07664,2453.0,2452.6,4.07728]
[1730611086479,5.13948596,2453.1,2452.3,4.8782]
[1730611086480,1.94321282,2452.8,2452.3,4.8782]
[1730611086679,4.07714,2452.7,2452.3,0.8005]
[1730611086996,0.7695,2452.8,2452.3,4.87829]
[1730611087190,4.07693,2452.9,2452.3,5.4516704]
[1730611087407,4.07693,2452.9,2452.4,4.07752]
[1730611087576,8.15389,2452.9,2452.4,4.07752]
[1730611087993,4.07693,2452.9,2452.5,4.07742]
[1730611088198,4.07693,2452.9,2452.4,4.07752]
[1730611089280,4.07693,2452.9,2452.4,8.15506]
[1730611089724,4.07693,2452.9,2452.5,4.07745]
[1730611090528,6.01987282,2453.0,2452.5,4.07745]
[1730611090724,7.51800993,2453.0,2452.5,4.07745]
[1730611090927,4.07687,2452.9,2452.5,4.07745]
[1730611097828,4.077,2452.8,2452.4,4.07761]
[1730611098023,5.25071282,2452.8,2452.4,4.07761]
[1730611098607,1.17371282,2452.8,2452.4,4.07761]
[1730611098813,4.07687,2452.9,2452.4,4.07761]
[1730611099020,5.40620396,2452.9,2452.5,4.07745]
[1730611102757,1.17371282,2452.8,2452.4,8.15516]
[1730611103037,1.17371282,2452.8,2452.4,4.07755]
[1730611103349,5.40622396,2452.9,2452.5,4.07747]
[1730611103649,1.32933396,2452.9,2452.6,0.813]
[1730611103800,5.40614396,2452.9,2452.6,0.813]
[1730611104343,5.40614396,2452.9,2452.5,4.07747]
[1730611104704,1.14260168,2452.8,2452.5,4.07747]
[1730611104904,4.07681,2452.9,2452.5,4.07747]
[1730611106114,4.07681,2452.9,2452.4,4.89061]
[1730611106321,4.077,2452.8,2452.4,4.89061]
[1730611106653,4.077,2452.8,2452.4,0.813]
[1730611107150,4.077,2452.8,2452.4,4.89062]
[1730611107450,5.25655425,2452.8,2452.4,4.89062]
[1730611110341,0.8272,2452.7,2452.3,8.15536]
[1730611110516,0.8272,2452.7,2452.3,8.15541]
[1730611111025,0.8272,2452.7,2452.3,4.07768]
[1730611111740,6.07855282,2452.4,2452.0,6.06690427]
[1730611112062,6.07855282,2452.4,2452.1,1.96969496]
[1730611112365,6.07855282,2452.4,2452.1,0.20012744]
[1730611112959,4.90484,2452.4,2452.1,0.20012744]
[1730611113326,4.90484,2452.4,2452.0,4.0782]
[1730611114643,0.8272,2452.4,2452.0,4.0782]
[1730611114839,4.07781,2452.3,2451.9,4.07838]
[1730611115084,4.90990995,2452.3,2452.0,0.20007843]
[1730611115244,4.90990995,2452.3,2451.9,4.07838]
[1730611115438,4.90990995,2452.3,2451.6,0.91639808]
[1730611115439,4.07844,2452.0,2451.6,0.91639808]
[1730611115706,0.8272,2451.9,2451.6,0.0608841]
[1730611116039,4.90567,2451.9,2451.6,0.0608841]
[1730611116665,4.07813,2452.1,2451.6,0.0608841]
[1730611116888,0.8272,2452.2,2451.6,0.0608841]
[1730611117043,1.90062846,2452.2,2451.7,0.813]
[1730611117885,0.8272,2452.4,2451.8,0.08156784]
[1730611118083,0.8272,2452.4,2451.9,0.813]
[1730611118573,4.90486,2452.4,2451.9,0.813]
[1730611118941,0.8272,2452.4,2451.9,0.813]
[1730611119845,0.8272,2452.4,2452.0,4.0783]
[1730611120241,0.8272,2452.4,2452.1,4.07811]
[1730611120783,0.8272,2452.4,2451.9,0.813]
[1730611120981,0.8272,2452.4,2452.0,4.0783]
[1730611121577,2.00091282,2452.4,2452.0,4.0783]
[1730611121881,2.6087521,2452.4,2452.0,4.0783]
[1730611123577,2.00091282,2452.4,2452.0,4.0783]
[1730611123996,2.00091282,2452.4,2452.0,8.15649]
[1730611124800,2.00091282,2452.4,2452.1,4.07803]
[1730611127105,2.00091282,2452.4,2452.0,4.07819]
[1730611127489,2.00091282,2452.4,2452.1,4.07803]
[1730611129823,0.8272,2452.4,2452.1,4.07803]
[1730611131625,0.8272,2452.4,2452.2,4.07794]
[1730611131826,1.93321282,2452.6,2452.2,4.07794]
[1730611133347,6.01056282,2452.6,2452.2,4.07794]
[1730611133503,7.28252971,2452.6,2452.2,4.07794]
[1730611136943,3.20517971,2452.6,2452.2,8.15578]
[1730611137154,1.93321282,2452.6,2452.2,8.91658]
[1730611137512,1.93321282,2452.6,2452.2,4.83864]
[1730611138538,6.01051282,2452.6,2452.2,4.83864]
[1730611143071,0.93333642,2452.7,2452.2,0.7608]
[1730611143300,1.17371282,2452.8,2452.3,4.07769]
[1730611143301,5.25076282,2452.8,2452.3,4.07769]
[1730611144297,5.25076282,2452.8,2452.4,4.07761]
[1730611144519,2.45801964,2452.9,2452.5,4.83825]
[1730611144726,4.07656,2453.1,2452.7,4.07709]
[1730611144727,1.69851964,2453.1,2452.7,4.07709]
[1730611144882,7.37272384,2453.2,2452.7,4.07709]
[1730611144883,6.94855246,2453.2,2452.7,4.07709]
[1730611145084,5.77499964,2453.1,2452.7,4.07709]
[1730611145390,4.07648,2453.1,2452.7,4.07709]
[1730611145587,2.87223246,2453.2,2452.8,4.07697]
[1730611145837,6.97662102,2453.3,2452.9,4.07668]
[1730611145838,0.7777,2453.3,2452.9,4.07668]
[1730611149131,4.85385,2453.3,2452.9,4.07668]
[1730611151799,0.7777,2453.3,2453.0,4.07659]
[1730611152000,1.17371282,2453.4,2453.0,4.07659]
[1730611152001,4.85362,2453.5,2453.0,4.07659]
[1730611152217,0.7777,2453.5,2453.2,4.07629]
[1730611152446,1.17371282,2453.6,2453.2,4.07623]
[1730611152937,1.17371282,2453.6,2453.3,4.07612]
[1730611153235,1.17371282,2453.6,2453.2,4.07623]
[1730611153236,5.24937282,2453.6,2453.2,4.07623]
[1730611153736,1.17371282,2453.6,2453.2,4.07623]
[1730611154110,1.17371282,2453.6,2453.3,4.07611]
[1730611156616,1.17371282,2453.6,2453.2,8.15244]
[1730611157513,1.17371282,2453.6,2453.2,4.07621]
[1730611158443,1.17371282,2453.6,2453.2,4.969481]
[1730611158640,1.17371282,2453.6,2453.2,9.045711]
[1730611160553,1.17371282,2453.6,2453.3,4.07611]
[1730611161056,1.17371282,2453.8,2453.4,4.07589]
[1730611161351,1.17371282,2453.8,2453.4,4.9804171]
[1730611162061,5.24904282,2453.8,2453.4,4.9804171]
[1730611162352,5.24904282,2453.8,2453.4,0.9045271]
[1730611162560,5.24904282,2453.8,2453.4,0.7511]
[1730611162731,1.17371282,2453.8,2453.4,4.82697]
[1730611164315,4.86565,2453.9,2452.9,0.51963506]
[1730611164316,1.17371282,2453.6,2453.1,4.82745]
[1730611164521,1.17371282,2453.6,2453.3,4.07613]
[1730611164759,1.17371282,2453.6,2453.3,4.966487]
[1730611169868,1.17371282,2453.6,2453.3,4.966417]
[1730611170387,1.17371282,2453.6,2453.1,4.82748]
[1730611170547,0.7904,2453.5,2453.2,4.07621]
[1730611174554,0.7904,2453.5,2453.3,4.07612]
[1730611177684,0.7904,2453.5,2453.2,8.15242]
[1730611177886,0.7904,2453.5,2453.3,4.07612]
[1730611181801,5.47023828,2453.5,2453.0,4.07654]
[1730611182000,1.17371282,2453.4,2453.0,4.07654]
[1730611182168,4.0765,2453.1,2452.7,4.07704]
[1730611182355,0.7904,2453.0,2452.6,4.07722]
[1730611182652,4.86704,2453.0,2452.6,4.07722]
[1730611183157,0.7904,2453.0,2452.7,4.07712]
[1730611183386,0.7904,2453.0,2452.7,8.15416]
[1730611184189,0.7904,2453.0,2452.7,4.07704]
[1730611186116,0.7904,2453.0,2452.7,8.15407]
[1730611186411,0.7904,2453.3,2452.8,4.07686]
[1730611186587,4.86655,2453.3,2452.8,4.07686]
[1730611187130,4.07632,2453.2,2452.8,4.07686]
[1730611187425,0.7904,2453.3,2453.0,4.07657]
[1730611187929,0.7904,2453.3,2453.0,8.15313]
[1730611188586,0.7904,2453.3,2453.0,4.07656]
[1730611190835,0.7904,2453.3,2453.0,4.07655]
[1730611192432,2.48723961,2453.5,2453.2,4.07628]
[1730611192643,0.7905,2453.5,2453.2,4.07628]
[1730611192804,1.69673961,2453.6,2453.3,4.07607]
[1730611193005,2.48723961,2453.7,2453.4,4.07584]
[1730611193410,2.48723961,2453.7,2453.5,4.07577]
[1730611193625,0.7905,2453.7,2453.5,4.07577]
[1730611193832,0.7905,2453.7,2453.4,4.07584]
[1730611196528,2.48723961,2453.7,2453.4,8.1517]
[1730611196726,0.7905,2453.7,2453.4,4.07584]
[1730611197463,2.48723961,2453.7,2453.4,4.07584]
[1730611197657,0.7905,2453.7,2453.4,4.07584]
[1730611198569,2.48723961,2453.7,2453.4,4.07584]
[1730611198767,0.7905,2453.7,2453.4,4.07584]
[1730611199264,0.7905,2453.7,2453.4,8.15172]
[1730611199633,0.7905,2453.7,2453.4,4.07584]
[1730611199843,0.7905,2453.7,2453.4,8.15172]
[1730611200067,0.7905,2453.7,2453.4,4.07584]
[1730611200737,2.48723961,2453.7,2453.4,4.07584]
[1730611201159,2.48723961,2453.7,2453.4,8.15174]
[1730611201376,2.48723961,2453.7,2453.4,4.07584]
[1730611201680,2.48723961,2453.7,2453.5,4.07578]
[1730611202375,0.7905,2453.7,2453.5,4.07578]
[1730611202549,2.48723961,2453.7,2453.5,4.07578]
[1730611202888,0.7905,2453.7,2453.5,4.07578]
[1730611203045,1.69673961,2453.8,2453.6,4.88144]
[1730611203244,2.12379709,2453.9,2453.6,0.8058]
[1730611203245,1.69673961,2453.9,2453.6,0.8058]
[1730611203475,1.17371282,2453.8,2453.4,4.88165]
[1730611203770,1.17371282,2453.8,2453.5,4.07579]
[1730611204556,1.17371282,2453.8,2453.6,4.07562]
[1730611204883,2.87045243,2454.0,2453.7,4.07543]
[1730611205386,6.94544243,2454.0,2453.6,4.07562]
[1730611205588,2.87045243,2454.0,2453.6,4.07562]
[1730611205764,2.87045243,2454.0,2453.6,8.15114]
[1730611206082,2.87045243,2454.0,2453.6,4.07552]
[1730611206781,2.87045243,2454.0,2453.7,4.07545]
[1730611207246,2.48723961,2454.1,2454.0,4.07497]
[1730611207448,2.12379709,2454.2,2454.1,4.07481]
[1730611207449,1.69673961,2454.2,2454.1,4.07481]
[1730611207776,1.69673961,2454.3,2454.1,4.07481]
[1730611207958,1.69673961,2454.4,2454.2,4.07459]
[1730611208160,1.69673961,2454.4,2454.0,4.07487]
[1730611208368,2.87045243,2454.4,2454.0,4.562737]
[1730611208679,1.17371282,2454.4,2454.1,4.07479]
[1730611215264,1.17371282,2454.2,2453.7,0.60790312]
[1730611215470,5.24842282,2454.2,2453.7,4.07536]
[1730611216516,1.95311282,2454.0,2453.6,4.0756]
[1730611216723,6.02817282,2454.0,2453.6,4.0756]
[1730611216940,6.02817282,2454.0,2453.4,8.95554]
[1730611216941,4.07516,2453.9,2453.4,8.95554]
[1730611217143,1.95311282,2454.0,2453.5,4.07571]
[1730611217343,1.95311282,2454.0,2453.6,4.07554]
[1730611217649,6.02817282,2454.0,2453.5,4.07571]
[1730611218112,6.02817282,2454.0,2453.5,8.15142]
[1730611219719,6.02817282,2454.0,2453.5,4.07571]
[1730611220503,6.02817282,2454.0,2453.5,8.15139]
[1730611221644,6.02817282,2454.0,2453.5,4.07568]
[1730611223651,6.02817282,2454.0,2453.5,8.1514]
[1730611224355,10.10325282,2454.0,2453.5,4.07568]
[1730611224536,6.6309901,2454.0,2453.5,4.07568]
[1730611226429,0.7681,2453.8,2453.5,4.07579]
[1730611229351,5.24940282,2453.6,2453.2,4.07622]
[1730611229658,1.17371282,2453.4,2453.0,4.0765]
[1730611229817,0.7681,2453.5,2453.1,4.07645]
[1730611230126,0.7681,2453.5,2453.2,4.07627]
[1730611230951,5.24912282,2453.8,2453.3,4.89909]
[1730611230952,4.84351,2453.8,2453.3,4.89909]
[1730611231152,4.84351,2453.8,2453.4,4.07589]
[1730611231347,0.7681,2453.8,2453.4,4.07589]
[1730611232528,7.71364243,2454.0,2453.5,4.0758]
[1730611232724,7.71364243,2454.0,2453.5,4.07571]
[1730611232725,6.01690282,2454.0,2453.5,4.07571]
[1730611232918,4.07523,2453.9,2453.5,4.07571]
[1730611234343,10.09200282,2454.0,2453.5,4.07571]
[1730611234548,6.01690282,2454.0,2453.5,4.07571]
[1730611234840,4.07514,2453.9,2453.5,4.07571]
[1730611235820,6.01690282,2454.0,2453.5,4.07571]
[1730611236144,0.7681,2454.2,2453.5,1.32113209]
[1730611236317,0.7681,2454.2,2453.8,4.07518]
[1730611236942,0.7681,2454.2,2453.8,4.89828]
[1730611241162,0.7681,2454.2,2453.8,0.8231]
[1730611241367,4.84315,2454.0,2453.5,4.07573]
[1730611242268,5.24876282,2454.0,2453.4,4.07597]
[1730611242468,4.07532,2453.8,2453.4,4.07597]
[1730611242824,4.07532,2453.8,2453.3,4.89921]
[1730611242825,5.24903282,2453.8,2453.3,4.89921]
[1730611243271,9.32443282,2453.8,2453.3,4.89921]
[1730611243437,0.7681,2453.7,2453.3,4.07611]
[1730611245328,0.7681,2453.7,2453.2,4.07619]
[1730611245639,4.84373,2453.7,2453.2,4.07619]
[1730611246054,4.84373,2453.7,2453.2,8.15241]
[1730611246545,4.84373,2453.7,2453.3,4.07611]
[1730611247169,4.84367,2453.7,2453.2,4.07621]
[1730611247575,4.84367,2453.7,2453.3,4.07613]
[1730611249342,0.7681,2453.5,2453.0,4.07649]
[1730611249548,4.844,2453.5,2453.0,8.15299]
[1730611251282,4.844,2453.5,2453.0,8.15303]
[1730611253384,4.07598,2453.4,2453.0,4.07649]
[1730611253685,0.8136,2453.3,2453.0,4.07649]
[1730611254151,0.8136,2453.3,2452.9,4.07671]
[1730611254350,0.8136,2453.3,2452.9,5.48355265]
[1730611254570,4.88974,2453.3,2452.9,5.48355265]
[1730611255379,4.88974,2453.3,2452.9,4.07671]
[1730611256157,8.96603,2453.3,2452.8,4.93039058]
[1730611256363,8.96603,2453.3,2452.9,0.90656308]
[1730611256364,4.88994,2453.2,2452.9,0.90656308]
[1730611256560,4.88994,2453.2,2452.8,4.07684]
[1730611256774,4.89,2453.2,2452.8,4.07684]
[1730611257050,4.89011,2453.1,2452.7,4.07712]
[1730611257675,0.8136,2453.1,2452.7,8.15417]
[1730611257868,0.8136,2453.1,2452.8,0.70682253]
[1730611258262,0.8136,2453.1,2452.7,4.07705]
[1730611259259,0.8136,2453.1,2452.7,8.15411]
[1730611259967,0.8136,2453.1,2452.7,4.07705]
[1730611260193,0.8136,2453.0,2452.7,4.07705]
[1730611263989,0.8136,2453.0,2452.7,4.07704]
[1730611264192,0.8136,2453.0,2452.8,4.0769]
[1730611264767,0.8136,2453.0,2452.9,4.0768]
[1730611267168,0.8136,2453.0,2452.8,4.07695]
[1730611267399,0.8136,2453.0,2452.8,8.15384]
[1730611267905,0.7867,2453.2,2452.9,4.0768]
[1730611268914,0.7867,2453.2,2453.0,4.07662]
[1730611269283,0.7867,2453.2,2452.8,4.07682]
[1730611271512,4.07657,2453.1,2452.5,4.86225]
[1730611271709,4.86334,2453.0,2452.6,4.78356248]
[1730611271915,4.86334,2453.0,2452.5,8.15472]
[1730611272520,4.86334,2453.0,2452.6,4.07724]
[1730611272890,0.7867,2453.0,2452.7,4.07704]
[1730611274600,0.7867,2453.0,2452.8,4.07697]
[1730611274819,0.7867,2453.0,2452.7,4.07711]
[1730611276392,0.7867,2453.0,2452.7,8.1541]
[1730611276594,0.7867,2453.0,2452.7,4.07705]
[1730611277328,0.7867,2453.5,2453.1,4.07644]
[1730611277491,4.86261,2453.5,2453.1,4.07644]
[1730611279724,0.7867,2453.5,2453.2,4.07629]
[1730611279928,0.7867,2453.5,2453.3,4.07609]
[1730611280228,4.07537,2453.8,2453.2,0.74592437]
[1730611280229,0.8027,2453.7,2453.2,0.74592437]
[1730611280425,0.8027,2453.5,2453.1,4.07639]
[1730611281125,0.8027,2453.3,2453.0,4.07663]
[1730611286203,0.8027,2453.3,2452.8,4.07685]
[1730611286204,4.07639,2453.2,2452.8,4.07685]
[1730611286396,4.07639,2453.2,2452.6,5.68764058]
[1730611286397,0.8027,2453.1,2452.6,5.68764058]
[1730611286625,0.8027,2453.1,2452.7,6.04382404]
[1730611286903,0.8027,2453.1,2452.7,4.07706]
[1730611288452,1.698236,2453.1,2452.7,4.07706]
[1730611289138,0.8027,2453.1,2452.7,4.07706]
[1730611292508,0.8027,2453.1,2452.7,4.15859354]
[1730611292950,4.87917,2453.1,2452.7,4.07706]
[1730611293526,0.8027,2453.1,2452.7,4.07706]
[1730611293737,0.8027,2453.1,2452.7,4.15859353]
[1730611294648,0.8027,2453.1,2452.9,4.0768]
[1730611295707,0.8027,2453.1,2452.7,4.83396]
[1730611295911,0.8027,2453.1,2452.8,4.9842326]
[1730611296144,0.8027,2453.1,2452.8,4.07694]
[1730611298810,4.87897,2453.3,2452.8,8.15375]
[1730611299249,4.87897,2453.3,2452.8,4.07681]
[1730611299550,4.87897,2453.3,2452.8,8.1537]
[1730611299755,4.87897,2453.3,2453.0,4.07654]
[1730611299756,0.8027,2453.3,2453.0,4.07654]
[1730611300252,0.8027,2453.3,2453.0,4.07653]
[1730611301753,0.8027,2453.3,2453.0,4.07662]
[1730611304353,4.87859,2453.5,2453.1,4.07647]
[1730611304513,4.87859,2453.5,2453.2,4.967211]
[1730611304514,0.8027,2453.5,2453.2,4.967211]
[1730611304918,0.8027,2453.5,2453.2,5.04872847]
[1730611305118,0.8027,2453.5,2453.2,4.967211]
[1730611305317,0.8027,2453.5,2453.2,0.890991]
[1730611305539,0.8027,2453.5,2453.1,8.15277]
[1730611305937,0.8027,2453.5,2453.1,4.07636]
[1730611311067,0.7531,2453.4,2453.1,4.07636]
[1730611311828,0.7531,2453.4,2453.1,8.15274]
[1730611312068,0.7531,2453.4,2453.1,4.07636]
[1730611312370,0.7531,2453.4,2453.2,0.407636]
[1730611314331,0.7531,2453.4,2453.1,4.07636]
[1730611315967,4.82942,2453.2,2452.8,4.93050058]
[1730611316202,4.82942,2453.2,2452.9,0.90691596]
[1730611316380,4.82942,2453.2,2452.9,4.27654643]
[1730611316381,0.7531,2453.2,2452.9,4.27654643]
[1730611316545,0.7531,2453.2,2452.9,4.07673]
[1730611316864,0.7531,2453.2,2452.8,4.15847842]
[1730611317070,0.7531,2453.2,2452.8,5.3555504]
[1730611317562,0.7531,2453.2,2452.8,1.19707198]
[1730611317767,4.07657,2453.1,2452.8,0.19983383]
[1730611317974,4.82947,2453.2,2452.8,0.19982864]
[1730611318165,4.82947,2453.2,2452.8,4.27679689]
[1730611318344,4.82947,2453.2,2452.8,4.07696]
[1730611318544,4.82947,2453.2,2452.7,4.07702]
[1730611318864,4.82947,2453.2,2452.8,0.70717613]
[1730611319033,4.82947,2453.2,2452.8,4.78412613]
[1730611319234,4.82947,2453.2,2452.8,4.07695]
[1730611319764,0.7531,2453.2,2452.8,4.07695]
[1730611321582,4.07655,2453.1,2452.7,4.93067058]
[1730611321778,4.07655,2453.1,2452.8,0.90711666]
[1730611321988,4.82943,2453.2,2452.8,6.04496894]
[1730611322183,4.82943,2453.2,2452.9,0.70725779]
[1730611322504,8.90584,2453.2,2452.7,4.93061058]
[1730611322672,4.82943,2453.2,2452.8,0.90716603]
[1730611322875,4.82943,2453.2,2452.8,4.27682375]
[1730611323179,4.82943,2453.2,2452.8,4.07696]
[1730611326509,4.82943,2453.2,2452.8,4.1584952]
[1730611326510,0.7531,2453.2,2452.8,4.1584952]
[1730611326683,0.7531,2453.2,2452.8,5.14611578]
[1730611328413,0.7531,2453.2,2452.8,4.1584952]
[1730611329240,4.8295,2453.2,2452.8,4.07696]
[1730611329421,4.8295,2453.2,2452.6,1.64065058]
[1730611329628,0.7696,2453.0,2452.7,4.07712]
[1730611330238,1.94331282,2453.0,2452.6,4.93078058]
[1730611330443,1.94331282,2453.0,2452.7,0.7073219]
[1730611330602,1.94331282,2453.0,2452.7,1.76830476]
[1730611330809,1.94331282,2453.0,2452.7,0.19989266]
[1730611332008,6.01996282,2453.0,2452.6,4.07723]
[1730611332557,1.94331282,2453.0,2452.6,4.07723]
[1730611333647,6.02000282,2453.0,2452.6,4.07729]
[1730611333818,2.9529611,2453.0,2452.6,4.07729]
[1730611334341,1.94331282,2453.0,2452.6,4.07729]
[1730611336478,6.01996282,2453.0,2452.6,4.07729]
[1730611336655,1.94331282,2453.0,2452.6,4.07729]
[1730611337950,6.01998282,2453.0,2452.6,4.07729]
[1730611338163,1.94331282,2453.0,2452.6,4.07729]
[1730611338786,6.01998282,2453.0,2452.6,4.07729]
[1730611345098,6.01995282,2453.0,2452.6,4.07729]
[1730611345263,1.94331282,2453.0,2452.7,4.0771]
[1730611345699,1.94331282,2453.0,2452.4,4.8538]
[1730611346013,6.01995282,2453.0,2452.6,4.07728]
[1730611346380,0.7846,2452.9,2452.5,4.07734]
[1730611347168,0.7846,2452.9,2452.5,4.07747]
[1730611348302,0.7846,2452.9,2452.6,4.07726]
[1730611348666,0.7846,2452.9,2452.7,4.07697]
[1730611348871,0.7846,2452.9,2452.7,4.892393]
[1730611351300,0.7846,2452.9,2452.7,0.815423]
[1730611352234,4.07647,2453.1,2452.7,0.815423]
[1730611352235,4.86107,2453.1,2452.7,4.892553]
[1730611353331,4.86107,2453.1,2452.7,4.07713]
[1730611353634,8.93762,2453.1,2452.6,4.82802]
[1730611354515,4.86107,2453.1,2452.7,4.0771]
[1730611355003,8.93762,2453.1,2452.7,4.0771]
[1730611355403,4.86107,2453.1,2452.7,4.0771]
[1730611356513,4.86107,2453.1,2452.6,0.83233546]
[1730611356916,4.86107,2453.1,2452.7,4.07713]
[1730611357339,8.93765,2453.1,2452.7,4.07713]
[1730611358139,4.86107,2453.1,2452.7,4.07713]
[1730611358932,8.93764,2453.1,2452.7,4.07713]
[1730611359132,4.86107,2453.1,2452.7,4.07713]
[1730611361556,5.25042282,2453.0,2452.6,4.07727]
[1730611361722,5.25042282,2453.0,2452.6,8.15449]
[1730611361928,5.25042282,2453.0,2452.6,4.07722]
[1730611362365,1.17371282,2453.0,2452.7,4.07712]
[1730611362826,5.25035282,2453.0,2452.6,4.07721]
[1730611363026,1.95831282,2452.8,2452.4,4.82832]
[1730611364157,1.95831282,2452.8,2452.5,4.07742]
[1730611367809,1.95831282,2452.8,2452.6,4.07725]
[1730611368010,0.7846,2452.8,2452.6,4.07725]
[1730611382955,6.03528282,2452.8,2452.4,4.07754]
[1730611383252,1.95831282,2452.8,2452.5,4.07745]
[1730611384007,0.7846,2452.8,2452.5,4.562715]
[1730611384443,0.7846,2452.8,2452.5,8.640105]
[1730611384944,0.7846,2452.8,2452.5,4.07738]
[1730611388845,0.7846,2452.8,2452.5,8.15475]
[1730611389042,0.7846,2452.8,2452.5,4.07737]
[1730611389241,1.95831282,2452.8,2452.5,4.07737]
[1730611390067,0.7846,2452.8,2452.6,4.07719]
[1730611390444,1.95831282,2452.8,2452.5,8.15475]
[1730611391338,1.95831282,2452.8,2452.5,4.07737]
[1730611391682,1.95831282,2452.8,2452.6,4.07726]
[1730611394379,1.95831282,2452.8,2452.5,4.07737]
[1730611395377,0.7846,2452.8,2452.6,4.07716]
[1730611397484,1.17371282,2453.0,2452.6,4.07716]
[1730611397653,2.00261282,2453.0,2452.7,4.07713]
[1730611398563,0.8289,2453.0,2452.8,4.07693]
[1730611401257,0.8289,2453.0,2452.5,0.485327]
[1730611401258,6.02152282,2453.4,2452.9,4.8452]
[1730611401594,6.6236751,2453.4,2452.9,4.84513]
[1730611401894,6.02152282,2453.4,2453.0,4.07662]
[1730611402901,1.94541282,2453.4,2453.0,4.07662]
[1730611403084,1.94541282,2453.4,2453.1,4.07645]
[1730611407567,1.41862183,2453.9,2453.0,0.08152354]
[1730611407568,1.17371282,2453.6,2453.3,0.7684]
[1730611407780,1.17371282,2453.6,2453.0,4.07652]
[1730611408094,1.17371282,2453.4,2453.2,8.15243]